fUSD/lending_fUSD_20240426
["ID","MTS","AMOUNT","RATE_DAILY","PERIOD"]
[323586219,1714097452432,-500.0,0.00011232,2]
[323586220,1714097452441,-500.0,0.00011232,2]
[323586221,1714097452450,-500.0,0.00011232,2]
[323586222,1714097452460,-500.0,0.00011232,2]
[323586223,1714097452470,-500.0,0.00011232,2]
[323586224,1714097452479,-504.86793555,0.00011232,2]
[323586225,1714097452490,-904.78,0.00011232,2]
[323586226,1714097452499,-500.0,0.00011232,2]
[323586227,1714097452509,-867.14,0.00011232,2]
[323586228,1714097452519,-1256.3,0.00011232,2]
[323586229,1714097452527,-500.0,0.00011232,2]
[323586230,1714097452537,-500.0,0.00011232,2]
[323586231,1714097452546,-500.0,0.00011232,2]
[323586232,1714097452556,-4702.46,0.00011232,2]
[323586233,1714097452566,-500.0,0.00011232,2]
[323586234,1714097452575,-500.0,0.00011232,2]
[323586235,1714097452585,-765.45,0.00011232,2]
[323586236,1714097452595,-1236.49,0.00011232,2]
[323586237,1714097452605,-500.0,0.00011232,2]
[323586238,1714097452614,-500.0,0.00011232,2]
[323586239,1714097452623,-500.0,0.00011232,2]
[323586240,1714097452633,-5632.57,0.00011232,2]
[323586241,1714097452643,-500.0,0.00011232,2]
[323586242,1714097452653,-804.99,0.00011232,2]
[323586243,1714097452663,-500.0,0.00011232,2]
[323586244,1714097452672,-500.0,0.00011232,2]
[323586245,1714097452682,-500.0,0.00011232,2]
[323586246,1714097452694,-1123.21,0.00011232,2]
[323586247,1714097452703,-500.0,0.00011232,2]
[323586248,1714097452712,-500.0,0.00011232,2]
[323586249,1714097452721,-500.0,0.00011232,2]
[323586250,1714097452730,-500.0,0.00011232,2]
[323586251,1714097452739,-554.81,0.00011232,2]
[323586252,1714097452749,-505.06414971,0.00011232,2]
[323586253,1714097452758,-500.0,0.00011232,2]
[323586254,1714097452767,-500.0,0.00011232,2]
[323586255,1714097452778,-500.0,0.00011232,2]
[323586256,1714097452787,-500.0,0.00011232,2]
[323586257,1714097452796,-500.0,0.00011232,2]
[323586258,1714097452805,-500.0,0.00011232,2]
[323586259,1714097452814,-890.88,0.00011232,2]
[323586260,1714097452823,-500.0,0.00011232,2]
[323586261,1714097452833,-1122.46,0.00011232,2]
[323586262,1714097452842,-500.0,0.00011232,2]
[323586263,1714097452851,-500.0,0.00011232,2]
[323586264,1714097452860,-500.0,0.00011232,2]
[323586265,1714097452869,-641.54,0.00011232,2]
[323586266,1714097452879,-500.73,0.00011232,2]
[323586267,1714097452890,-500.0,0.00011232,2]
[323586268,1714097452899,-500.0,0.00011232,2]
[323586269,1714097452907,-500.0,0.00011232,2]
[323586270,1714097452917,-1076.51,0.00011232,2]
[323586271,1714097452926,-504.01887028,0.00011232,2]
[323586272,1714097452935,-500.0,0.00011232,2]
[323586273,1714097452945,-503.91013649,0.00011232,2]
[323586274,1714097452956,-554.56,0.00011232,2]
[323586275,1714097452965,-500.0,0.00011232,2]
[323586276,1714097452974,-504.23712574,0.00011232,2]
[323586277,1714097452983,-800.54,0.00011232,2]
[323586278,1714097452992,-500.0,0.00011232,2]
[323586279,1714097453002,-500.0,0.00011232,2]
[323586280,1714097453011,-1255.02,0.00011232,2]
[323586281,1714097453020,-500.0,0.00011232,2]
[323586282,1714097453029,-602.89,0.00011232,2]
[323586283,1714097453038,-968.15,0.00011232,2]
[323586284,1714097453048,-519.99,0.00011232,2]
[323586285,1714097453057,-502.47402683,0.00011232,2]
[323586286,1714097453066,-500.0,0.00011232,2]
[323586287,1714097453076,-500.0,0.00011232,2]
[323586288,1714097453085,-500.0,0.00011232,2]
[323586289,1714097453094,-500.0,0.00011232,2]
[323586290,1714097453103,-188.22259045,0.00011232,2]
[323586291,1714097453113,-500.0,0.00011232,2]
[323586292,1714097453122,-500.0,0.00011232,2]
[323586293,1714097453131,-500.0,0.00011232,2]
[323586294,1714097453140,-500.0,0.00011232,2]
[323586295,1714097453149,-500.0,0.00011232,2]
[323586296,1714097453158,-641.07,0.00011232,2]
[323586297,1714097453167,-500.0,0.00011232,2]
[323586298,1714097453177,-500.0,0.00011232,2]
[323586299,1714097453186,-500.0,0.00011232,2]
[323586300,1714097453195,-500.0,0.00011232,2]
[323586301,1714097453204,-6982.24257977,0.00011232,2]
[323586302,1714097453865,-4406.59742023,0.00011232,2]
[323586303,1714097453876,-500.0,0.00011232,2]
[323586304,1714097453888,-530.86,0.00011232,2]
[323586305,1714097453900,-226.14,0.00011232,2]
[323586306,1714097453911,-568.29455174,0.00011232,2]
[323586307,1714097453921,-3939.86,0.00011232,2]
[323586308,1714097453932,-522.4527548,0.00011232,2]
[323586309,1714097453943,-500.0,0.00011232,2]
[323586310,1714097453954,-3012.08,0.00011232,2]
[323586311,1714097453965,-500.0,0.00011232,2]
[323586312,1714097453975,-500.0,0.00011232,2]
[323586313,1714097453985,-1947.45,0.00011232,2]
[323586314,1714097453996,-152.913037,0.00011232,2]
[323586315,1714097454007,-500.0,0.00011232,2]
[323586316,1714097454018,-530.08661872,0.00011232,2]
[323586317,1714097454029,-500.0,0.00011232,2]
[323586318,1714097454040,-3000.0,0.00011232,2]
[323586319,1714097454051,-500.0,0.00011232,2]
[323586320,1714097454061,-500.0,0.00011232,2]
[323586321,1714097454072,-490.0,0.00011232,2]
[323586322,1714097454084,-3849.55,0.00011232,2]
[323586323,1714097454094,-373.86749881,0.00011232,2]
[323586324,1714097454105,-500.0,0.00011232,2]
[323586325,1714097454116,-500.0,0.00011232,2]
[323586326,1714097454127,-500.0,0.00011232,2]
[323586327,1714097454138,-749.89,0.00011232,2]
[323586328,1714097454150,-519.59519775,0.00011232,2]
[323586329,1714097454162,-851.54,0.00011232,2]
[323586330,1714097454173,-1554.02,0.00011232,2]
[323586331,1714097454184,-500.0,0.00011232,2]
[323586332,1714097454195,-500.0,0.00011232,2]
[323586333,1714097454206,-500.0,0.00011232,2]
[323586334,1714097454217,-500.0,0.00011232,2]
[323586335,1714097454228,-500.0,0.00011232,2]
[323586336,1714097454238,-728.67,0.00011232,2]
[323586337,1714097454250,-500.0,0.00011232,2]
[323586338,1714097454261,-500.0,0.00011232,2]
[323586339,1714097454272,-500.0,0.00011232,2]
[323586340,1714097454283,-500.0,0.00011232,2]
[323586341,1714097454293,-500.0,0.00011232,2]
[323586342,1714097454305,-500.0,0.00011232,2]
[323586343,1714097454315,-500.0,0.00011232,2]
[323586344,1714097454326,-510.76,0.00011232,2]
[323586345,1714097454337,-500.0,0.00011232,2]
[323586346,1714097454348,-151.339728,0.00011232,2]
[323586347,1714097454358,-500.0,0.00011232,2]
[323586348,1714097454369,-500.0,0.00011232,2]
[323586349,1714097454380,-500.0,0.00011232,2]
[323586350,1714097454391,-500.0,0.00011232,2]
[323586351,1714097454403,-500.0,0.00011232,2]
[323586352,1714097454414,-500.0,0.00011232,2]
[323586353,1714097454425,-500.0,0.00011232,2]
[323586354,1714097454435,-506.08760606,0.00011232,2]
[323586355,1714097454446,-500.0,0.00011232,2]
[323586356,1714097454458,-500.0,0.00011232,2]
[323586357,1714097454469,-3062.0,0.00011232,2]
[323586358,1714097454480,-500.0,0.00011232,2]
[323586359,1714097454492,-909.5,0.00011232,2]
[323586360,1714097454503,-1470.35,0.00011232,2]
[323586361,1714097454516,-500.0,0.00011232,2]
[323586362,1714097454527,-500.0,0.00011232,2]
[323586363,1714097454538,-792.3,0.00011232,2]
[323586364,1714097454549,-500.0,0.00011232,2]
[323586365,1714097454561,-504.03209993,0.00011232,2]
[323586366,1714097454572,-500.0,0.00011232,2]
[323586367,1714097454585,-500.0,0.00011232,2]
[323586368,1714097454596,-500.0,0.00011232,2]
[323586369,1714097454607,-1188.8,0.00011232,2]
[323586370,1714097454618,-500.0,0.00011232,2]
[323586371,1714097454630,-921.85,0.00011232,2]
[323586372,1714097454644,-549.28,0.00011232,2]
[323586373,1714097454654,-858.61,0.00011232,2]
[323586374,1714097454665,-500.0,0.00011232,2]
[323586375,1714097454675,-500.0,0.00011232,2]
[323586376,1714097454687,-2122.64,0.00011232,2]
[323586377,1714097454700,-1451.82,0.00011232,2]
[323586378,1714097454711,-1072.02,0.00011232,2]
[323586379,1714097454721,-500.0,0.00011232,2]
[323586380,1714097454732,-930.86,0.00011232,2]
[323586381,1714097454744,-500.0,0.00011232,2]
[323586382,1714097454755,-536.87,0.00011232,2]
[323586383,1714097454768,-1254.01,0.00011232,2]
[323586384,1714097454779,-624.93,0.00011232,2]
[323586385,1714097454790,-500.0,0.00011232,2]
[323586386,1714097454801,-504.43913857,0.00011232,2]
[323586387,1714097454812,-500.0,0.00011232,2]
[323586388,1714097454822,-957.97,0.00011232,2]
[323586389,1714097454833,-500.0,0.00011232,2]
[323586390,1714097454843,-500.0,0.00011232,2]
[323586391,1714097454855,-1244.11,0.00011232,2]
[323586392,1714097454865,-500.57,0.00011232,2]
[323586393,1714097454876,-3654.52,0.00011232,2]
[323586394,1714097454886,-500.0,0.00011232,2]
[323586395,1714097454897,-500.0,0.00011232,2]
[323586396,1714097454908,-502.35152961,0.00011232,2]
[323586397,1714097454918,-1167.9,0.00011232,2]
[323586398,1714097454928,-437.48426993,0.00011232,2]
[323586399,1714097454939,-500.0,0.00011232,2]
[323586400,1714097454949,-1045.55,0.00011232,2]
[323586401,1714097454959,-500.0,0.00011232,2]
[323586402,1714097454970,-500.0,0.00011232,2]
[323586403,1714097454980,-500.0,0.00011232,2]
[323586404,1714097454990,-500.78727412,0.00011232,2]
[323586405,1714097455001,-500.0,0.00011232,2]
[323586406,1714097455011,-845.91,0.00011232,2]
[323586407,1714097455022,-554.43,0.00011232,2]
[323586408,1714097455032,-2655.55,0.00011232,2]
[323586409,1714097455043,-512.02470413,0.00011232,2]
[323586410,1714097455055,-500.0,0.00011232,2]
[323586411,1714097455065,-500.0,0.00011232,2]
[323586412,1714097455075,-500.0,0.00011232,2]
[323586413,1714097455086,-500.0,0.00011232,2]
[323586414,1714097455097,-1413.14,0.00011232,2]
[323586415,1714097455109,-500.0,0.00011232,2]
[323586416,1714097455120,-633.9,0.00011232,2]
[323586417,1714097455130,-500.0,0.00011232,2]
[323586418,1714097455141,-500.0,0.00011232,2]
[323586419,1714097455153,-500.0,0.00011232,2]
[323586420,1714097455164,-517.09747755,0.00011232,2]
[323586421,1714097455175,-500.0,0.00011232,2]
[323586422,1714097455186,-500.0,0.00011232,2]
[323586423,1714097455197,-504.70532223,0.00011232,2]
[323586424,1714097455208,-1271.02,0.00011232,2]
[323586425,1714097455219,-504.09239932,0.00011232,2]
[323586426,1714097455229,-500.0,0.00011232,2]
[323586427,1714097455240,-1489.29,0.00011232,2]
[323586428,1714097455250,-500.0,0.00011232,2]
[323586429,1714097455260,-776.85,0.00011232,2]
[323586430,1714097455271,-562.95,0.00011232,2]
[323586431,1714097455281,-504.61436064,0.00011232,2]
[323586432,1714097455292,-500.0,0.00011232,2]
[323586433,1714097455302,-660.15,0.00011232,2]
[323586434,1714097455313,-500.0,0.00011232,2]
[323586435,1714097455324,-872.1,0.00011232,2]
[323586436,1714097455334,-500.0,0.00011232,2]
[323586437,1714097455345,-500.0,0.00011232,2]
[323586438,1714097455355,-884.83,0.00011232,2]
[323586439,1714097455366,-510.71,0.00011232,2]
[323586440,1714097455377,-559.226458,0.00011232,2]
[323586441,1714097455387,-500.0,0.00011232,2]
[323586442,1714097455401,-500.0,0.00011232,2]
[323586443,1714097455412,-164.50524724,0.00011269,2]
[323586444,1714097455424,-150.0,0.00011285,2]
[323586445,1714097455436,-5104.50676261,0.00011293,2]
[323586446,1714097455446,-1000.0,0.000113,2]
[323586447,1714097455456,-294.1,0.0001132,2]
[323586448,1714097455467,-5986.19986248,0.00011379,2]
[323586449,1714097455478,-5296.19938847,0.00011383,2]
[323586450,1714097455489,-150.0,0.00011445,2]
[323586451,1714097455500,-12615.64617632,0.0001145,2]
[323586452,1714097455510,-5104.50676261,0.00011453,2]
[323586453,1714097455521,-294.1,0.0001147,2]
[323586454,1714097455532,-164.50524724,0.00011475,2]
[323586455,1714097455543,-310.79267917,0.00011496,2]
[323586456,1714097455553,-456.00966855,0.000115,2]
[323586457,1714097455564,-150.0,0.00011501,2]
[323586458,1714097455575,-2219.23722781,0.00011504,2]
[323586459,1714097455584,-5187.62194771,0.00011504,2]
[323586460,1714097455593,-873.34444622,0.00011504,2]
[323586461,1714097455603,-7612.27486887,0.00011504,2]
[323586462,1714097455612,-1745.28001102,0.00011504,2]
[323586463,1714097455621,-500.0,0.00011505,2]
[323586464,1714097455630,-5160.82,0.00011505,2]
[323586465,1714097455639,-500.0,0.00011505,2]
[323586466,1714097455650,-500.0,0.00011505,2]
[323586467,1714097455659,-2591.1,0.00011505,2]
[323586468,1714097455668,-614.68,0.00011505,2]
[323586469,1714097455678,-500.0,0.00011505,2]
[323586470,1714097455689,-500.0,0.00011505,2]
[323586471,1714097455699,-1067.79,0.00011505,2]
[323586472,1714097455709,-718.23,0.00011505,2]
[323586473,1714097455718,-1041.2,0.00011505,2]
[323586474,1714097456146,-500.0,0.00011505,2]
[323586475,1714097456171,-1489.91,0.00011505,2]
[323586476,1714097456188,-833.69,0.00011505,2]
[323586477,1714097456201,-1303.19,0.00011505,2]
[323586478,1714097456210,-2892.99,0.00011505,2]
[323586479,1714097456220,-1755.88,0.00011505,2]
[323586480,1714097456230,-500.0,0.00011505,2]
[323586481,1714097456242,-702.49,0.00011505,2]
[323586482,1714097456252,-2555.28,0.00011505,2]
[323586483,1714097456261,-1195.57,0.00011505,2]
[323586484,1714097456270,-834.4,0.00011505,2]
[323586485,1714097456280,-523.76,0.00011505,2]
[323586486,1714097456290,-561.06,0.00011505,2]
[323586487,1714097456299,-500.0,0.00011506,2]
[323586488,1714097456308,-500.0,0.00011506,2]
[323586489,1714097456318,-500.0,0.00011506,2]
[323586490,1714097456327,-806.44,0.00011506,2]
[323586491,1714097456336,-500.0,0.00011506,2]
[323586492,1714097456345,-514.01,0.00011506,2]
[323586493,1714097456355,-500.0,0.00011506,2]
[323586494,1714097456364,-674.35,0.00011506,2]
[323586495,1714097456373,-500.0,0.00011506,2]
[323586496,1714097456383,-500.0,0.00011506,2]
[323586497,1714097456393,-500.0,0.00011506,2]
[323586498,1714097456406,-500.0,0.00011506,2]
[323586499,1714097456416,-500.0,0.00011506,2]
[323586500,1714097456426,-500.0,0.00011506,2]
[323586501,1714097456435,-775.16,0.00011506,2]
[323586502,1714097456444,-500.0,0.00011506,2]
[323586503,1714097456455,-500.0,0.00011506,2]
[323586504,1714097456465,-500.0,0.00011506,2]
[323586505,1714097456475,-500.0,0.00011506,2]
[323586506,1714097456485,-500.0,0.00011506,2]
[323586507,1714097456494,-500.0,0.00011506,2]
[323586508,1714097456503,-491.34408334,0.00011506,2]
[323586509,1714097456512,-500.0,0.00011506,2]
[323586510,1714097456521,-500.0,0.00011506,2]
[323586511,1714097456530,-500.0,0.00011506,2]
[323586512,1714097456539,-500.0,0.00011506,2]
[323586513,1714097456548,-500.0,0.00011506,2]
[323586514,1714097456558,-500.0,0.00011506,2]
[323586515,1714097456567,-500.0,0.00011506,2]
[323586516,1714097456576,-500.0,0.00011506,2]
[323586517,1714097456585,-500.0,0.00011506,2]
[323586518,1714097456594,-500.0,0.00011506,2]
[323586519,1714097456603,-500.0,0.00011506,2]
[323586520,1714097456612,-500.0,0.00011506,2]
[323586521,1714097456621,-300.4846597,0.00011506,2]
[323586522,1714097456630,-500.0,0.00011506,2]
[323586523,1714097456640,-655.57,0.00011506,2]
[323586524,1714097456651,-500.0,0.00011506,2]
[323586525,1714097456660,-500.0,0.00011506,2]
[323586526,1714097456670,-500.0,0.00011506,2]
[323586527,1714097456679,-500.0,0.00011506,2]
[323586528,1714097456691,-500.0,0.00011506,2]
[323586529,1714097456700,-500.0,0.00011506,2]
[323586530,1714097456709,-500.0,0.00011506,2]
[323586531,1714097456718,-532.78441359,0.00011506,2]
[323586532,1714097456728,-500.0,0.00011506,2]
[323586533,1714097456737,-500.0,0.00011506,2]
[323586534,1714097456746,-500.0,0.00011506,2]
[323586535,1714097456756,-500.0,0.00011506,2]
[323586536,1714097456766,-152.060117,0.00011506,2]
[323586537,1714097456775,-500.0,0.00011506,2]
[323586538,1714097456784,-500.0,0.00011506,2]
[323586539,1714097456793,-500.0,0.00011506,2]
[323586540,1714097456802,-500.0,0.00011506,2]
[323586541,1714097456811,-500.0,0.00011506,2]
[323586542,1714097456820,-809.64,0.00011506,2]
[323586543,1714097456829,-500.0,0.00011506,2]
[323586544,1714097456838,-500.0,0.00011506,2]
[323586545,1714097456848,-500.0,0.00011506,2]
[323586546,1714097456858,-500.0,0.00011506,2]
[323586547,1714097456869,-699.96,0.00011506,2]
[323586548,1714097456878,-500.0,0.00011506,2]
[323586549,1714097456888,-500.0,0.00011506,2]
[323586550,1714097456901,-500.0,0.00011506,2]
[323586551,1714097456910,-500.0,0.00011506,2]
[323586552,1714097456920,-308.14819394,0.00011506,2]
[323586553,1714097456930,-500.0,0.00011506,2]
[323586554,1714097456939,-500.0,0.00011506,2]
[323586555,1714097456950,-500.0,0.00011506,2]
[323586556,1714097456960,-500.0,0.00011506,2]
[323586557,1714097456969,-884.52,0.00011506,2]
[323586558,1714097456979,-500.0,0.00011506,2]
[323586559,1714097456988,-500.0,0.00011506,2]
[323586560,1714097456997,-537.41,0.00011506,2]
[323586561,1714097457006,-500.0,0.00011506,2]
[323586562,1714097457016,-500.0,0.00011506,2]
[323586563,1714097457026,-870.61,0.00011506,2]
[323586564,1714097457035,-500.0,0.00011506,2]
[323586565,1714097457044,-500.0,0.00011506,2]
[323586566,1714097457054,-500.0,0.00011506,2]
[323586567,1714097457063,-824.93,0.00011506,2]
[323586568,1714097457072,-593.42,0.00011506,2]
[323586569,1714097457081,-500.0,0.00011506,2]
[323586570,1714097457091,-500.0,0.00011506,2]
[323586571,1714097457101,-500.0,0.00011506,2]
[323586572,1714097457111,-500.0,0.00011506,2]
[323586573,1714097457120,-500.0,0.00011506,2]
[323586574,1714097457129,-500.0,0.00011506,2]
[323586575,1714097457139,-652.14,0.00011506,2]
[323586576,1714097457149,-500.0,0.00011506,2]
[323586577,1714097457158,-500.0,0.00011506,2]
[323586578,1714097457167,-654.33,0.00011506,2]
[323586579,1714097457176,-500.0,0.00011506,2]
[323586580,1714097457190,-500.0,0.00011506,2]
[323586581,1714097457199,-500.0,0.00011506,2]
[323586582,1714097457209,-500.0,0.00011506,2]
[323586583,1714097457219,-500.0,0.00011506,2]
[323586584,1714097457229,-588.96,0.00011506,2]
[323586585,1714097457239,-500.0,0.00011506,2]
[323586586,1714097457248,-617.47,0.00011506,2]
[323586587,1714097457257,-500.0,0.00011506,2]
[323586588,1714097457266,-500.0,0.00011506,2]
[323586589,1714097457276,-500.0,0.00011506,2]
[323586590,1714097457285,-500.0,0.00011506,2]
[323586591,1714097457294,-500.0,0.00011506,2]
[323586592,1714097457304,-500.0,0.00011506,2]
[323586593,1714097457313,-769.92,0.00011506,2]
[323586594,1714097457322,-500.0,0.00011506,2]
[323586595,1714097457331,-500.0,0.00011506,2]
[323586596,1714097457340,-500.0,0.00011506,2]
[323586597,1714097457349,-500.0,0.00011506,2]
[323586598,1714097457358,-539.08,0.00011506,2]
[323586599,1714097457367,-500.0,0.00011506,2]
[323586600,1714097457377,-500.0,0.00011506,2]
[323586601,1714097457386,-595.64578693,0.00011506,2]
[323586602,1714097457398,-500.0,0.00011506,2]
[323586603,1714097457407,-500.0,0.00011506,2]
[323586604,1714097457416,-500.0,0.00011506,2]
[323586605,1714097457425,-500.0,0.00011506,2]
[323586606,1714097457434,-823.12,0.00011506,2]
[323586607,1714097457443,-826.98,0.00011506,2]
[323586608,1714097457452,-500.0,0.00011506,2]
[323586609,1714097457461,-998.35,0.00011506,2]
[323586610,1714097457470,-500.0,0.00011506,2]
[323586611,1714097457479,-500.0,0.00011506,2]
[323586612,1714097457488,-190.99985466,0.00011506,2]
[323586613,1714097457498,-500.0,0.00011506,2]
[323586614,1714097457508,-500.0,0.00011506,2]
[323586615,1714097457518,-641.98,0.00011506,2]
[323586616,1714097457529,-500.0,0.00011506,2]
[323586617,1714097457540,-638.66558546,0.00011506,2]
[323586618,1714097457549,-500.0,0.00011506,2]
[323586619,1714097457558,-500.0,0.00011506,2]
[323586620,1714097457568,-500.0,0.00011506,2]
[323586621,1714097457576,-500.0,0.00011506,2]
[323586622,1714097457585,-500.0,0.00011506,2]
[323586623,1714097457594,-500.0,0.00011506,2]
[323586624,1714097457603,-500.0,0.00011506,2]
[323586625,1714097457612,-500.0,0.00011506,2]
[323586626,1714097457622,-500.0,0.00011506,2]
[323586627,1714097457631,-500.0,0.00011506,2]
[323586628,1714097457640,-500.0,0.00011506,2]
[323586629,1714097457651,-525.99,0.00011506,2]
[323586630,1714097457659,-500.0,0.00011506,2]
[323586631,1714097457669,-500.0,0.00011506,2]
[323586632,1714097457678,-500.0,0.00011506,2]
[323586633,1714097457688,-500.0,0.00011506,2]
[323586634,1714097457700,-500.0,0.00011506,2]
[323586635,1714097457709,-500.0,0.00011506,2]
[323586636,1714097457718,-500.0,0.00011506,2]
[323586637,1714097457728,-500.0,0.00011506,2]
[323586638,1714097457737,-500.0,0.00011506,2]
[323586639,1714097457747,-500.0,0.00011506,2]
[323586640,1714097457756,-500.0,0.00011506,2]
[323586641,1714097457766,-500.0,0.00011506,2]
[323586642,1714097457775,-602.49,0.00011506,2]
[323586643,1714097457785,-500.0,0.00011506,2]
[323586644,1714097457795,-500.0,0.00011506,2]
[323586645,1714097457804,-500.0,0.00011506,2]
[323586646,1714097457814,-500.0,0.00011506,2]
[323586647,1714097457824,-814.62,0.00011506,2]
[323586648,1714097457834,-500.0,0.00011506,2]
[323586649,1714097457843,-500.0,0.00011506,2]
[323586650,1714097457854,-504.71490135,0.00011506,2]
[323586651,1714097457865,-500.0,0.00011506,2]
[323586652,1714097457875,-500.0,0.00011506,2]
[323586653,1714097457886,-500.0,0.00011506,2]
[323586654,1714097457895,-500.0,0.00011506,2]
[323586655,1714097457905,-500.0,0.00011506,2]
[323586656,1714097457914,-500.0,0.00011506,2]
[323586657,1714097457923,-945.24,0.00011506,2]
[323586658,1714097457933,-500.0,0.00011506,2]
[323586659,1714097457942,-1003.47,0.00011506,2]
[323586660,1714097457951,-500.0,0.00011506,2]
[323586661,1714097457960,-500.0,0.00011506,2]
[323586662,1714097457970,-500.0,0.00011506,2]
[323586663,1714097457980,-500.0,0.00011506,2]
[323586664,1714097457989,-500.0,0.00011506,2]
[323586665,1714097457999,-899.78,0.00011506,2]
[323586666,1714097458009,-500.0,0.00011506,2]
[323586667,1714097458020,-500.0,0.00011506,2]
[323586668,1714097458030,-500.0,0.00011506,2]
[323586669,1714097458039,-500.0,0.00011506,2]
[323586670,1714097458048,-660.92,0.00011506,2]
[323586671,1714097458058,-500.0,0.00011506,2]
[323586672,1714097458067,-500.0,0.00011506,2]
[323586673,1714097458077,-652.66,0.00011506,2]
[323586674,1714097458086,-500.0,0.00011506,2]
[323586675,1714097458096,-500.0,0.00011506,2]
[323586676,1714097458106,-165.03390443,0.00011506,2]
[323586677,1714097458115,-500.0,0.00011506,2]
[323586678,1714097458124,-500.0,0.00011506,2]
[323586679,1714097458134,-364.93239987,0.00011506,2]
[323586680,1714097458144,-500.0,0.00011506,2]
[323586681,1714097458154,-500.0,0.00011506,2]
[323586682,1714097458165,-500.43,0.00011506,2]
[323586683,1714097458174,-500.0,0.00011506,2]
[323586684,1714097458184,-457.53079605,0.00011506,2]
[323586685,1714097458193,-500.0,0.00011506,2]
[323586686,1714097458203,-500.0,0.00011506,2]
[323586687,1714097458213,-500.0,0.00011506,2]
[323586688,1714097458222,-500.0,0.00011506,2]
[323586689,1714097458231,-515.66225271,0.00011506,2]
[323586690,1714097458241,-500.0,0.00011506,2]
[323586691,1714097458251,-624.03,0.00011506,2]
[323586692,1714097458260,-500.0,0.00011506,2]
[323586693,1714097458270,-513.77,0.00011506,2]
[323586694,1714097458279,-557.57,0.00011506,2]
[323586695,1714097458289,-500.0,0.00011506,2]
[323586696,1714097458298,-500.0,0.00011506,2]
[323586697,1714097458307,-500.0,0.00011506,2]
[323586698,1714097458317,-536.0346466,0.00011506,2]
[323586699,1714097458326,-500.0,0.00011506,2]
[323586700,1714097458336,-500.0,0.00011506,2]
[323586701,1714097458346,-150.0,0.00011506,2]
[323586702,1714097458355,-245.37059869,0.00011506,2]
[323586703,1714097458365,-500.0,0.00011506,2]
[323586704,1714097458374,-500.0,0.00011506,2]
[323586705,1714097458383,-500.0,0.00011506,2]
[323586706,1714097458393,-500.0,0.00011506,2]
[323586707,1714097458404,-583.87,0.00011506,2]
[323586708,1714097458413,-500.0,0.00011506,2]
[323586709,1714097458423,-495.0,0.00011506,2]
[323586710,1714097458432,-500.0,0.00011506,2]
[323586711,1714097458442,-500.0,0.00011506,2]
[323586712,1714097458451,-500.0,0.00011506,2]
[323586713,1714097458461,-225.0263864,0.00011506,2]
[323586714,1714097458470,-500.0,0.00011506,2]
[323586715,1714097458479,-500.0,0.00011506,2]
[323586716,1714097458489,-500.0,0.00011506,2]
[323586717,1714097458498,-500.0,0.00011506,2]
[323586718,1714097458507,-500.0,0.00011506,2]